Cogmind - Beta 14 @@@ ROGUE MODE // 2024.12.13 @ 02:38:30 Player: AshCrow Result: Destroyed by NN-VMH(R) with Subdweller Beam Cannon Performance ------------- Evolutions (0) 0 Regions Visited (2) 400 Robots Destroyed (10) 50 Value Destroyed (210) 210 Prototype IDs (0) 0 Alien Tech Used (0) 0 Bonus (0) 0 TOTAL SCORE: 660 Bonus ------- None Cogmind --------- Core Integrity 0/250 Matter 291/300 Energy 154/170 System Corruption 0% Temperature Cool (9) Movement Core (300) Ox5 Location -10/Subcaves Parts ------- > --- POWER (1) -------- Makeshift Power Source > --- PROPULSION (2) --- (None) > --- UTILITY (2) ------ Medium Storage Unit > --- WEAPON (2) ------- Makeshift Laser > --- INVENTORY (10) --- Light Ion Engine Subdweller Power Source Subdweller Monowheel Small Storage Unit Tractor Beam Subdweller Machine Gun Shrapnel Trap Scrap Shield Fragment (45) Peak State ------------ > --- POWER ------------ Makeshift Power Source > --- PROPULSION ------- Makeshift Leg Makeshift Leg > --- UTILITY ---------- Medium Storage Unit Improved Terrain Scanner > --- WEAPON ----------- Light Assault Rifle Subdweller Machine Gun > --- INVENTORY -------- Light Ion Engine Subdweller Power Source Subdweller Monowheel Small Storage Unit Tractor Beam Makeshift Laser Light Assault Rifle Subdweller Machine Gun Shrapnel Trap Scrap Shield Fragment [Rating: 20] Favorites ----------- Power Ion Engine Engine Ion Engine Propulsion Light Treads Treads Light Treads Leg Makeshift Leg Utility Improved Terrain Scanner Device Improved Terrain Scanner Storage Medium Storage Unit Weapon Light Assault Rifle Energy Gun EM Pulse Gun Ballistic Gun Light Assault Rifle Build | -11 -10 -10 ------- Run | Yrd Mat Sub Slots Evolved . | . . . Power . | . . . Propulsion . | . . . Utility . | . . . Weapon . | . . . Parts Attached 19 | 7 1 11 Power 4 | 1 . 3 Engine 4 | 1 . 3 Core . | . . . Reactor . | . . . Propulsion 4 | 2 . 2 Treads 2 | 2 . . Leg 2 | . . 2 Wheel . | . . . Hover . | . . . Flight . | . . . Utility 3 | 2 1 . Device 1 | 1 . . Storage 2 | 1 1 . Processor . | . . . Hackware . | . . . Protection . | . . . Artifact . | . . . Weapon 8 | 2 . 6 Energy Gun 2 | 1 . 1 Energy Cannon . | . . . Ballistic Gun 6 | 1 . 5 Ballistic Cannon . | . . . Launcher . | . . . Special Weapon . | . . . Impact Weapon . | . . . Slashing Weapon . | . . . Piercing Weapon . | . . . Special Melee Weapon . | . . . Unidentified Prototypes . | . . . Parts Lost 10 | . . 10 Power 1 | . . 1 Propulsion 4 | . . 4 Utility 1 | . . 1 Weapon 4 | . . 4 Highest Loss Streak 6 | . . 6 To Critical Strikes 1 | . . 1 Average Slot Usage (%) 92 | . 100 89 Engine 13 | . 14 13 Treads 14 | . 28 9 Leg 6 | . . 9 Device 14 | . 14 14 Storage 14 | . 14 14 Energy Gun 5 | . 14 1 Ballistic Gun 22 | . 14 25 Peak Build Rating 20 | 9 9 20 Average Rating 11 | 6 9 12 On Entrance 6 | . 9 9 Naked Turns . | . . . Heaviest Build 21 | 14 19 21 Greatest Support 40 | 40 40 40 Greatest Overweight (x) 6 | 1 . 6 Average Overweight (x) . | . . . Largest Inventory Capacity 10 | 8 10 10 Average Capacity 9 | 7 9 10 Most Carried 10 | 4 5 10 Average Carried 6 | 2 4 7 Final Capacity 10 | 8 10 10 Final Carried 8 | 4 5 8 Class Distribution -------------------- 78% | Mutant 21% | Scavenger-Mutant Dominant Class ---------------- Mutant | -10/Materials Mutant | -10/Subcaves Resources | -11 -10 -10 ----------- Run | Yrd Mat Sub Matter Collected 495 | 260 . 235 Remotely . | . . . Salvage Created 330 | 80 . 250 Parts 27 | 9 . 18 Haulers Intercepted . | . . . Recyclers Shooed . | . . . Parts Field Recycled . | . . . Retrieved Matter . | . . . Parts Self-Destructed 24 | . . 24 Prevented . | . . . Kills | -11 -10 -10 ------- Run | Yrd Mat Sub Combat Hostiles Destroyed 7 | . . 7 Guns 7 | . . 7 Classes Destroyed 4 | 2 . 2 Tunneler 2 | 2 . . Recycler 1 | 1 . . Swarmer 3 | . . 3 Subdweller 4 | . . 4 Best Kill Streak 3 | 2 . 3 Combat Bots Only 3 | . . 3 Max Kills in Single Turn 1 | 1 . 1 Gunslinging . | . . . Exploded . | . . . Melee . | . . . Uniques/NPCs Destroyed . | . . . Combat | -11 -10 -10 -------- Run | Yrd Mat Sub Hostile Shots Fired 123 | . . 123 Missed 47 | . . 47 Damage Taken 1172 | 33 . 1139 Core 275 | . . 275 Absorbed by Shields . | . . . Core Remaining (%) 100 | 100 . . Volleys Fired 99 | 3 1 95 Largest 2 | 2 2 2 Hottest 60 | 60 60 60 Shots Fired 149 | 6 2 141 Gun 149 | 6 2 141 Cannon . | . . . Launcher . | . . . Special . | . . . Kinetic 133 | 3 1 129 Thermal 9 | . . 9 Explosive . | . . . Electromagnetic 7 | 3 1 3 Robot Hit Streak 31 | 3 . 31 Robot Miss Streak 3 | 3 2 3 Penetration Max . | . . . Secondary Targets 1 | . . 1 Max Gunslinging Chain 1 | . . 1 Shots Hit Robots 85 | 3 . 82 Core Hits 23 | 4 . 19 Critical Kills 1 | . . 1 Critical Parts Destroyed . | . . . Critical Strikes 3 | . . 3 Destroy 3 | . . 3 Melee Attacks . | . . . Impact . | . . . Slashing . | . . . Piercing . | . . . Sneak Attacks . | . . . Combat Hostiles . | . . . Follow-up Attacks . | . . . Damage Inflicted 725 | 92 3 630 Guns 668 | 38 . 630 Cannons . | . . . Explosions 44 | 44 . . Melee . | . . . Ramming 13 | 10 3 . Kinetic 605 | 10 . 595 Thermal 44 | 44 . . Explosive . | . . . Electromagnetic 63 | 28 . 35 Impact . | . . . Slashing . | . . . Piercing . | . . . Highest Corruption . | . . . Average Corruption . | . . . Corruption Purged . | . . . Corruption Blocked . | . . . Overload Shots . | . . . Overflow Damage . | . . . Projectiles . | . . . Explosions . | . . . Melee . | . . . Knockbacks . | . . . Impact . | . . . Kinetic . | . . . Secondary . | . . . Self-Inflicted Damage 33 | 33 . . Shots 1 | 1 . . Rammed 6 | 5 1 . Targets Rammed 7 | 6 1 . Kicked . | . . . Crushed 1 | 1 . . Highest Temperature 52 | 52 20 . Average Temperature 21 | 25 10 . Received Heat Transfer 234 | . . 234 Siege Activations . | . . . Robots Corrupted . | . . . Combat Hostiles . | . . . Parts Fried . | . . . Impact Corruptions . | . . . Robots Melted . | . . . Combat Hostiles . | . . . Parts Melted 2 | . . 2 Heat Transferred . | . . . Parts Sabotaged . | . . . Parts Stolen . | . . . Parts Stripped . | . . . Power Chain Reactions 1 | 1 . . Alert | -11 -10 -10 ------- Run | Yrd Mat Sub Peak Influence 15 | 15 9 . Initial 9 | . 9 . Average 7 | 8 6 . Maximum Alert Level . | . . . Low Security (%) 100 | 100 100 . Level 1 . | . . . Level 2 . | . . . Level 3 . | . . . Level 4 . | . . . Level 5 . | . . . High Security . | . . . Max Security . | . . . Squads Dispatched 1 | . 1 . Investigation . | . . . Extermination . | . . . Reinforcement 1 | . 1 . Assault . | . . . Garrison . | . . . Intercept . | . . . Searches Triggered . | . . . Construction Impeded . | . . . Haulers Reinforced . | . . . Active Scanning Responses . | . . . Cargo Convoy Interrupts . | . . . Stealth | -11 -10 -10 --------- Run | Yrd Mat Sub Distress Signals . | . . . Communications Jammed . | . . . Distress Signals . | . . . Times Spotted 11 | . 1 10 Peak Tracking Total 6 | . 1 6 Tactical Retreats 2 | . . 2 Traps | -11 -10 -10 ------- Run | Yrd Mat Sub Traps Triggered . | . . . Indirectly . | . . . Trap Hack Attempts . | . . . Triggered . | . . . Disarmed . | . . . Reprogrammed . | . . . Reused . | . . . Traps Extracted . | . . . Installed . | . . . Triggered . | . . . Most Traps Carried 1 | . . 1 Machines | -11 -10 -10 ---------- Run | Yrd Mat Sub Machines Disabled . | . . . Max in Single Turn . | . . . Machines Repaired . | . . . Machines Dismantled . | . . . Machines Sabotaged . | . . . Overloaded Fab Kills . | . . . Hacking | -11 -10 -10 --------- Run | Yrd Mat Sub Machines Accessed . | . . . Terminals . | . . . Fabricators . | . . . Repair Stations . | . . . Recycling Units . | . . . Scanalyzers . | . . . Garrison Access . | . . . Total Hacks . | . . . Successful . | . . . Failed . | . . . Catastrophic . | . . . Database Lockouts . | . . . Manual . | . . . Terminals . | . . . Fabricators . | . . . Repair Stations . | . . . Recycling Units . | . . . Scanalyzers . | . . . Garrison Access . | . . . Terminal Hacks . | . . . Fabricator Hacks . | . . . Repair Station Hacks . | . . . Recycling Unit Hacks . | . . . Scanalyzer . | . . . Garrison Access Hacks . | . . . Unauthorized Hacks . | . . . Terminals . | . . . Fabricators . | . . . Repair Stations . | . . . Recycling Units . | . . . Scanalyzers . | . . . Garrison Access . | . . . Data Cores Recovered . | . . . Used . | . . . Hacking Detections . | . . . Full Trace Events . | . . . Feedback Events . | . . . Feedback Blocked . | . . . Robot Schematics Acquired . | . . . Robots Built . | . . . Authchips . | . . . Time . | . . . Total Robot Build Rating . | . . . Part Schematics Acquired . | . . . Parts Built . | . . . Authchips . | . . . Time . | . . . Total Part Build Rating . | . . . Parts Repaired . | . . . Time . | . . . Parts Recycled . | . . . Recycled Matter . | . . . Retrieved Matter . | . . . Retrieved Components . | . . . Parts Scanalyzed . | . . . Part Schematics Acquired . | . . . Parts Damaged . | . . . Bothacking | -11 -10 -10 ------------ Run | Yrd Mat Sub Used RIF Installer . | . . . Robots Hacked . | . . . Non-combat . | . . . Combat . | . . . Robot Hacks Applied . | . . . Relay Couplers Released . | . . . Fabnet Peak Effective % . | . . . Robots Rewired . | . . . Allies Hacked . | . . . Hacks Repelled . | . . . Allies | -11 -10 -10 -------- Run | Yrd Mat Sub Total Allies . | . . . Largest Group . | . . . Highest-Rated Group . | . . . Highest-Rated Ally . | . . . Total Orders . | . . . Ally Attacks . | . . . Total Damage . | . . . Kills . | . . . Allies Corrupted . | . . . Allies Melted . | . . . Intel | -11 -10 -10 ------- Run | Yrd Mat Sub Robot Analysis Total . | . . . Derelict Logs Recovered 1 | . . 1 Drone Launches . | . . . Drone Recoveries . | . . . Exploration | -11 -10 -10 ------------- Run | Yrd Mat Sub Turns Passed 2068 | 245 538 1285 Spaces Moved 848 | 136 162 550 Core 44 | 5 . 39 Treads 564 | 131 162 271 Legs 240 | . . 240 Wheels . | . . . Hover . | . . . Flight . | . . . Fastest Speed 50 | 50 160 140 Average Speed 177 | 157 160 187 Slowest Speed 350 | 160 160 350 Overloaded Moves . | . . . Propulsion Burnouts . | . . . Robots Hopped . | . . . Cave-ins Triggered . | . . . Exploration Rate (%) 22 | 8 22 36 Regions Visited 2 Branch Regions 1 Pre-discovered Areas . | . . . Known Exits Taken . | . . . Unknown Exits Taken 2 | 1 1 . Scrap Searched 2 | . . 2 Spaces Dug . | . . . Terrain Destroyed 5 | 5 . . Melee . | . . . Projectile . | . . . AOE 5 | 5 . . Terrain Rammed . | . . . Walls Destroyed . | . . . Machines Disabled . | . . . Actions | -11 -10 -10 --------- Run | Yrd Mat Sub Total 1274 | 155 438 681 Wait 280 | . 274 6 Move 846 | 135 161 550 Hop . | . . . Pick Up 8 | 4 . 4 Fast Attach 9 | 7 . 2 Attach 4 | . . 4 Detach . | . . . Swap 6 | . 1 5 Drop 1 | . . 1 Fire 99 | 3 1 95 Melee . | . . . Ram . | . . . Kick . | . . . Crush 7 | 6 1 . Escape Stasis . | . . . Rewire 14 | . . 14 Trap . | . . . Miscellaneous . | . . . Route ------- -11/Scrapyard -10/Materials -10/Subcaves History --------- Turn | Location | Event 25 | -11/Scrapyard | Discovered new exit (range 16) 246 | -11/Scrapyard | Entered Materials 318 | -10/Materials | Build established: Mutant 764 | -10/Materials | Discovered new exit (range 2) 784 | -10/Materials | Entered Subcaves 1412 | -10/Subcaves | Core integrity fell below 50% 1903 | -10/Subcaves | Build established: Scavenger-Mutant 1992 | -10/Subcaves | Learned 8 Materials zone layouts 2056 | -10/Subcaves | Core integrity fell below 20% 2069 | -10/Subcaves | Destroyed by NN-VMH(R) with Subdweller Beam Cannon Last Messages --------------- DO-LBH(R) destroyed. Acquired 31 matter. Acquired derelict log, extracted data. Data stored: Materials zone layouts (x8). Broken Sub. Machine Gun destroyed. S-10 Pest destroyed. Lgt. Ion Engine fries itself beyond repair. S-10 Pest destroyed. Subatomizers dissect the Lgt. Ion Engine. S-10 Pest destroyed. Switching to secondary target: S-10 Pest. S-10 Pest destroyed. Mak. Leg destroyed. Lgt. Assault Rifle fries itself beyond repair. Lgt. Ion Engine fries itself beyond repair. Mak. Leg destroyed. Flight Unit fries itself beyond repair. Lgt. Assault Rifle destroyed. Flight Unit fries itself beyond repair. Imp. Terrain Scanner destroyed. Map ----- +----------------------------------------------------+ | ?????????????????????????????????????????????????? | | ?????????????????????????????????????????????????? | | ?????????????????????????????????????????????????? | | ?????????????????????????????????????????????????? | | ?????????????????????????????????????????????????? | | ?????????????????????????????????????????????????? | | ?????????????????????????????????????????????????? | | ?????????????????????????????????????????????????? | | ?????????????????????????#???????????????????????? | | ????????????????????????#?#??????????????????????? | | ???????????????????????????##????????????????????? | | ????????????????????????### ##???????????????????? | | ???#???????????????????? #???????????????????? | | ????#?#??????????##????? ####????????????????? | | ??#??#????????????????? ?????????????????? | | ???????#???????????????#< ?????????????????? | | ????????????????????? ? ??????????????????? | | ?????????????????#?????#R ??#????????????????? | | ?????????????????#???### ?? #### ????????????? | | ??????????????????#### ? ??????????????? | | ##???????? ##### ? ????????????????? | | ##??????? ## #?? ??????????????? | | #??????? % % ;# ; ##????????????????? | | #??????????? % #????????????????? | | #???????????????#?## #?????????????????? | | #?????? ??????????# @######?? ??????????????? | | #???????? ?"???#??# ######? ??#????????? | | ##????#????????????## # # #???????????? | | ##???#?????#????????## #???????????????? | | #??????????????????## #???????????????? | | #??????????#???????# ## ??????????? | | #?????????#????????# ######?????? ???????????? | | #?#??#?#??????#??### #???????????????????????? | | #???????????#????# #???????????????????????? | | #???#??#?#????#?### ##?????#????????????????? | | #???????????#?#?#?# #??????????????????????? | | #????????????#?##### #?#??#?????????????????? | | ???#????#?#???## ### ##??????????????????????? | | ??#???###?????# #??#???????????????????? | | #?????????????# ##??????????????????????? | | #?######?????## ### #???????????????????????? | | ?## #????## ##?? #??????????????????????? | | ?# #???## #??? ##??????????????????????? | | ## ##??# ##?#? #???????????????????????? | | #### ##???? #???????????????????????? | | ## #????? ???????????????????????? | | #?????? ???????????????????????? | | ##???? ? ??????????????????????? | | ###???????? ??????????????????????? | | ##??????????? ?????????????????????? | +----------------------------------------------------+ Best States ------------- Heat Dissipation 25 Energy Generation 15 Energy Capacity 250 Matter Stores 300 Matter Capacity 300 Sight Range 16 Terrain Scan Range 16 Terrain Scan Density 10 Evasion (%) 55 Recoil Reduction 2 Item Schematics ----------------- None Robot Schematics ------------------ None Fabricated ------------ Nothing Alien Tech Used ----------------- None Achievements -------------- None Challenges ------------ None Game ------ Seed DeliverySigixCore Manual? 0 Play Time 00:12:41 Cumulative 28.9 hours Start 2024.12.13 @ 02:31:01 End 2024.12.13 @ 02:38:30 Sessions 1 Manual Loads 0 Difficulty Rogue Special Mode None Game No. 45 Rogue 45 Adventurer 0 Explorer 0 Win Type - Total 0 Types 0/0/0/0/0/0/0/0/0 Lore% 22 Gallery% 27 Achievement% 26 Wizard Run 0 Options --------- Layout 1 ASCII 0 Keyboard 1 Movement Numpad Keybinds 0 Fullscreen 1 Font 24/Smallcaps Map View 50x35 Zoom Use 0% Tactical HUD 0 Map Filters NONE Filters NONE Steam 1 RUN: e9ad03cf-acab-4f0a-883c-59798a7cb001